fUST/lending_fUST_20250831
["ID","MTS","AMOUNT","RATE_DAILY","PERIOD"]
[382468564,1756638640535,-1000.0,0.0001763,2]
[382468566,1756638640544,-1000.0,0.0001763,2]
[382468568,1756638640554,-1000.0,0.0001763,2]
[382468570,1756638640563,-1000.0,0.0001763,2]
[382468572,1756638640573,-1000.0,0.0001763,2]
[382468574,1756638640583,-1419.27,0.0001763,2]
[382468576,1756638640592,-1000.0,0.0001763,2]
[382468578,1756638640602,-1000.0,0.0001763,2]
[382468580,1756638640612,-1000.0,0.0001763,2]
[382468582,1756638640621,-1000.0,0.0001763,2]
[382468584,1756638640631,-1000.0,0.0001763,2]
[382468586,1756638640640,-1000.0,0.0001763,2]
[382468588,1756638640650,-1000.0,0.0001763,2]
[382468590,1756638640659,-1000.0,0.0001763,2]
[382468592,1756638640668,-1000.0,0.0001763,2]
[382468594,1756638640678,-1000.0,0.0001763,2]
[382468596,1756638640687,-1000.0,0.0001763,2]
[382468598,1756638640697,-720.78824563,0.0001763,2]
[382468600,1756638640706,-480.0,0.0001763,2]
[382468602,1756638640715,-846.82,0.0001763,2]
[382468622,1756638640885,-810.03,0.0001763,2]
[382468624,1756638640895,-500.0,0.0001763,2]
[382468626,1756638640904,-1027.81,0.0001763,2]
[382468628,1756638640914,-1280.68,0.0001763,2]
[382468630,1756638640924,-177.6217449,0.0001763,2]
[382468632,1756638640933,-480.0,0.0001763,2]
[382468634,1756638640943,-945.67,0.0001763,2]
[382468636,1756638640955,-1513.89,0.0001763,2]
[382468638,1756638640965,-1872.72,0.0001763,2]
[382468640,1756638640974,-480.0,0.0001763,2]
[382468642,1756638640984,-480.0,0.0001763,2]
[382468644,1756638640994,-480.0,0.0001763,2]
[382468646,1756638641003,-984.44,0.0001763,2]
[382468648,1756638641012,-1869.57,0.0001763,2]
[382468650,1756638641022,-732.42,0.0001763,2]
[382468652,1756638641031,-2153.77,0.0001763,2]
[382468654,1756638641041,-1572.18,0.0001763,2]
[382468655,1756638641051,-480.0,0.0001763,2]
[382468657,1756638641060,-12905.7,0.0001763,2]
[382468659,1756638641069,-7621.64,0.0001763,2]
[382468661,1756638641079,-3702.65,0.0001763,2]
[382468663,1756638641088,-737.04,0.0001763,2]
[382468665,1756638641098,-511.51,0.0001763,2]
[382468667,1756638641108,-1881.33,0.0001763,2]
[382468669,1756638641117,-555.76,0.0001763,2]
[382468671,1756638641126,-965.47,0.0001763,2]
[382468673,1756638641135,-9809.04,0.0001763,2]
[382468675,1756638641144,-809.39,0.0001763,2]
[382468677,1756638641154,-9350.55,0.0001763,2]
[382468679,1756638641164,-646.75,0.0001763,2]
[382468681,1756638641174,-480.0,0.0001763,2]
[382468683,1756638641183,-1171.4,0.0001763,2]
[382468685,1756638641193,-200.0,0.0001763,10]
[382468687,1756638641202,-500.0,0.0001763,2]
[382468689,1756638641212,-240309.26716447,0.00017631,2]
[382468691,1756638641221,-170.08341902,0.00017631,2]
[382468693,1756638641231,-1800.57420469,0.00017675,2]
[382468695,1756638641240,-302.0,0.00017707,2]
[382468697,1756638641250,-257.0,0.00017719,2]
[382468699,1756638641259,-480.0,0.00017729,2]
[382468701,1756638641268,-480.0,0.00017729,2]
[382468703,1756638641277,-480.0,0.00017729,2]
[382468705,1756638641287,-480.0,0.00017729,2]
[382468707,1756638641297,-504.38854327,0.00017729,2]
[382468709,1756638641306,-1743.49,0.00017729,2]
[382468711,1756638641316,-855.65,0.00017729,2]
[382468713,1756638641326,-480.0,0.00017729,2]
[382468715,1756638641335,-923.58,0.00017729,2]
[382468717,1756638641344,-583.68,0.00017729,2]
[382468719,1756638641354,-496.53,0.00017729,2]
[382468721,1756638641362,-1550.12,0.00017729,2]
[382468723,1756638641372,-480.0,0.00017729,2]
[382468725,1756638641381,-1041.77,0.00017729,2]
[382468727,1756638641391,-480.0,0.00017729,2]
[382468729,1756638641400,-778.0,0.00017729,2]
[382468731,1756638641410,-445.54626521,0.00017729,2]
[382468733,1756638641423,-1297.72,0.00017729,2]
[382468735,1756638641432,-2071.86,0.00017729,2]
[382468737,1756638641442,-480.0,0.00017729,2]
[382468739,1756638641451,-601.76,0.00017729,2]
[382468741,1756638641461,-480.0,0.00017729,2]
[382468743,1756638641470,-723.21,0.00017729,2]
[382468745,1756638641480,-480.0,0.00017729,2]
[382468747,1756638641490,-480.0,0.00017729,2]
[382468749,1756638641500,-650.9,0.00017729,2]
[382468751,1756638641509,-546.59,0.00017729,2]
[382468753,1756638641518,-1578.77,0.00017729,2]
[382468755,1756638641527,-480.0,0.00017729,2]
[382468757,1756638641536,-1949.26,0.00017729,2]
[382468759,1756638641546,-480.0,0.00017729,2]
[382468761,1756638641555,-480.0,0.00017729,2]
[382468763,1756638641566,-480.0,0.00017729,2]
[382468765,1756638641575,-1693.91,0.00017729,2]
[382468767,1756638641585,-480.0,0.00017729,2]
[382468769,1756638641594,-1562.44,0.00017729,2]
[382468771,1756638641604,-555.57,0.00017729,2]
[382468772,1756638641615,-480.0,0.00017729,2]
[382468773,1756638641624,-480.0,0.00017729,2]
[382468774,1756638641634,-480.0,0.00017729,2]
[382468775,1756638641643,-638.49,0.00017729,2]
[382468776,1756638641653,-887.51,0.00017729,2]
[382468777,1756638641662,-480.0,0.00017729,2]
[382468778,1756638641672,-847.23,0.00017729,2]
[382468779,1756638641682,-480.0,0.00017729,2]
[382468780,1756638641691,-719.25,0.00017729,2]
[382468781,1756638641700,-480.72266844,0.00017729,2]
[382468782,1756638641709,-721.32,0.00017729,2]
[382468783,1756638641719,-1464.13,0.00017729,2]
[382468784,1756638641728,-1569.43,0.00017729,2]
[382468785,1756638641737,-480.0,0.00017729,2]
[382468786,1756638641747,-1642.79,0.00017729,2]
[382468787,1756638641756,-1455.08,0.00017729,2]
[382468788,1756638641765,-567.43,0.00017729,2]
[382468789,1756638641775,-480.0,0.00017729,2]
[382468790,1756638641784,-832.31,0.00017729,2]
[382468791,1756638641794,-481.80391927,0.00017729,2]
[382468792,1756638641803,-1068.87,0.00017729,2]
[382468793,1756638641813,-480.0,0.00017729,2]
[382468794,1756638641822,-1233.48,0.00017729,2]
[382468796,1756638641831,-706.43,0.00017729,2]
[382468798,1756638641840,-411.47985354,0.00017729,2]
[382468800,1756638641850,-480.0,0.00017729,2]
[382468802,1756638641859,-480.0,0.00017729,2]
[382468804,1756638641869,-500.74,0.00017729,2]
[382468806,1756638641878,-480.0,0.00017729,2]
[382468808,1756638641887,-504.98,0.00017729,2]
[382468810,1756638641896,-727.79,0.00017729,2]
[382468812,1756638641906,-2898.88,0.00017729,2]
[382468814,1756638641915,-1737.4,0.00017729,2]
[382468816,1756638641923,-480.0,0.00017729,2]
[382468818,1756638641932,-480.0,0.00017729,2]
[382468820,1756638641941,-740.8,0.00017729,2]
[382468822,1756638641952,-930.35,0.00017729,2]
[382468824,1756638641963,-1853.64,0.00017729,2]
[382468826,1756638641972,-590.8,0.00017729,2]
[382468828,1756638641981,-794.31,0.00017729,2]
[382468829,1756638641991,-457.77380632,0.0001773,2]
[382468830,1756638642002,-480.0,0.0001773,2]
[382468831,1756638642013,-690.49,0.0001773,2]
[382468832,1756638642024,-480.0,0.0001773,2]
[382468833,1756638642034,-480.0,0.0001773,2]
[382468834,1756638642043,-700.24,0.0001773,2]
[382468835,1756638642053,-480.0,0.0001773,2]
[382468836,1756638642062,-480.0,0.0001773,2]
[382468837,1756638642071,-480.0,0.0001773,2]
[382468838,1756638642080,-480.0,0.0001773,2]
[382468839,1756638642090,-480.0,0.0001773,2]
[382468840,1756638642100,-480.0,0.0001773,2]
[382468841,1756638642110,-480.0,0.0001773,2]
[382468842,1756638642119,-1711.74,0.0001773,2]
[382468843,1756638642129,-480.0,0.0001773,2]
[382468844,1756638642138,-480.0,0.0001773,2]
[382468845,1756638642147,-599.79,0.0001773,2]
[382468846,1756638642157,-480.0,0.0001773,2]
[382468847,1756638642166,-480.0,0.0001773,2]
[382468848,1756638642176,-738.36,0.0001773,2]
[382468849,1756638642185,-480.0,0.0001773,2]
[382468850,1756638642195,-480.0,0.0001773,2]
[382468851,1756638642204,-480.0,0.0001773,2]
[382468852,1756638642213,-512.56,0.0001773,2]
[382468853,1756638642223,-535.44,0.0001773,2]
[382468854,1756638642234,-480.0,0.0001773,2]
[382468855,1756638642243,-1485.55,0.0001773,2]
[382468856,1756638642253,-481.98236086,0.0001773,2]
[382468857,1756638642263,-482.2012894,0.0001773,2]
[382468858,1756638642272,-1225.05,0.0001773,2]
[382468859,1756638642282,-501.86,0.0001773,2]
[382468860,1756638642293,-768.31,0.0001773,2]
[382468861,1756638642304,-480.0,0.0001773,2]
[382468862,1756638642314,-1720.19,0.0001773,2]
[382468863,1756638642323,-480.0,0.0001773,2]
[382468864,1756638642333,-480.0,0.0001773,2]
[382468865,1756638642343,-191.45152546,0.0001773,2]
[382468866,1756638642352,-480.77654323,0.0001773,2]
[382468867,1756638642363,-480.0,0.0001773,2]
[382468868,1756638642372,-858.19,0.0001773,2]
[382468869,1756638642381,-674.79,0.0001773,2]
[382468870,1756638642391,-480.0,0.0001773,2]
[382468871,1756638642401,-480.61044114,0.0001773,2]
[382468872,1756638642411,-673.45,0.0001773,2]
[382468873,1756638642421,-480.0,0.0001773,2]
[382468874,1756638642431,-480.94,0.0001773,2]
[382468875,1756638642440,-480.0,0.0001773,2]
[382468876,1756638642450,-480.0,0.0001773,2]
[382468877,1756638642460,-480.0,0.0001773,2]
[382468878,1756638642470,-480.0,0.0001773,2]
[382468879,1756638642479,-1845.48,0.0001773,2]
[382468880,1756638642490,-480.0,0.0001773,2]
[382468881,1756638642499,-480.0,0.0001773,2]
[382468882,1756638642509,-480.0,0.0001773,2]
[382468883,1756638642519,-480.0,0.0001773,2]
[382468884,1756638642529,-480.0,0.0001773,2]
[382468886,1756638642538,-480.0,0.0001773,2]
[382468887,1756638642548,-486.6603232,0.0001773,2]
[382468888,1756638642558,-1734.94,0.0001773,2]
[382468889,1756638642568,-480.0,0.0001773,2]
[382468890,1756638642577,-502.79,0.0001773,2]
[382468891,1756638642587,-480.0,0.0001773,2]
[382468892,1756638642597,-481.38064116,0.0001773,2]
[382468893,1756638642607,-480.0,0.0001773,2]
[382468894,1756638642619,-480.0,0.0001773,2]
[382468895,1756638642629,-480.0,0.0001773,2]
[382468896,1756638642639,-173.13617814,0.0001773,2]
[382468898,1756638642649,-480.0,0.0001773,2]
[382468899,1756638642659,-585.28,0.0001773,2]
[382468900,1756638642669,-480.0,0.0001773,2]
[382468901,1756638642680,-480.0,0.0001773,2]
[382468902,1756638642690,-480.0,0.0001773,2]
[382468903,1756638642700,-480.0,0.0001773,2]
[382468904,1756638642709,-480.0,0.0001773,2]
[382468905,1756638642719,-480.0,0.0001773,2]
[382468906,1756638642729,-480.0,0.0001773,2]
[382468907,1756638642739,-480.0,0.0001773,2]
[382468908,1756638642748,-1033.69,0.0001773,2]
[382468909,1756638642758,-534.67,0.0001773,2]
[382468910,1756638642767,-480.0,0.0001773,2]
[382468911,1756638642777,-480.0,0.0001773,2]
[382468912,1756638642788,-480.0,0.0001773,2]
[382468913,1756638642797,-480.0,0.0001773,2]
[382468914,1756638642808,-480.0,0.0001773,2]
[382468915,1756638642819,-880.48,0.0001773,2]
[382468916,1756638642828,-480.0,0.0001773,2]
[382468917,1756638642838,-480.0,0.0001773,2]
[382468918,1756638642847,-480.0,0.0001773,2]
[382468919,1756638642861,-480.0,0.0001773,2]
[382468920,1756638642870,-555.84,0.0001773,2]
[382468921,1756638642880,-480.0,0.0001773,2]
[382468922,1756638642890,-480.0,0.0001773,2]
[382468923,1756638642899,-923.92,0.0001773,2]
[382468924,1756638642909,-480.0,0.0001773,2]
[382468925,1756638642918,-1000.0,0.0001773,2]
[382468926,1756638642927,-480.88586375,0.0001773,2]
[382468927,1756638642937,-480.0,0.0001773,2]
[382468928,1756638642948,-480.0,0.0001773,2]
[382468929,1756638642959,-480.0,0.0001773,2]
[382468931,1756638642968,-480.0,0.0001773,2]
[382468933,1756638642977,-1129.79,0.0001773,2]
[382468935,1756638642987,-538.7,0.0001773,2]
[382468937,1756638642997,-480.0,0.0001773,2]
[382468939,1756638643006,-480.0,0.0001773,2]
[382468941,1756638643016,-481.40225443,0.0001773,2]
[382468943,1756638643026,-500.0,0.0001773,2]
[382468945,1756638643035,-500.0,0.0001773,2]
[382468947,1756638643046,-500.0,0.0001773,2]
[382468949,1756638643055,-500.0,0.0001773,2]
[382468951,1756638643065,-500.0,0.0001773,2]
[382468953,1756638643075,-500.0,0.0001773,2]
[382468955,1756638643084,-500.0,0.0001773,2]
[382468957,1756638643095,-500.0,0.0001773,2]
[382468959,1756638643104,-500.0,0.0001773,2]
[382468961,1756638643113,-500.0,0.0001773,2]
[382468963,1756638643122,-500.0,0.0001773,2]
[382468965,1756638643131,-500.0,0.0001773,2]
[382468967,1756638643141,-197.59145903,0.0001773,2]
[382468969,1756638643150,-480.0,0.0001773,2]
[382468971,1756638643159,-480.0,0.0001773,2]
[382468973,1756638643169,-480.0,0.0001773,2]
[382468975,1756638643178,-480.0,0.0001773,2]
[382468977,1756638643187,-586.76,0.0001773,2]
[382468979,1756638643198,-1587.95,0.0001773,2]
[382468981,1756638643208,-480.0,0.0001773,2]
[382468983,1756638643218,-770.34,0.0001773,2]
[382468985,1756638643228,-789.46,0.0001773,2]
[382468987,1756638643237,-703.32,0.0001773,2]
[382468989,1756638643247,-480.0,0.0001773,2]
[382468991,1756638643256,-480.0,0.0001773,2]
[382468993,1756638643266,-480.0,0.0001773,2]
[382468995,1756638643275,-759.74,0.0001773,2]
[382468997,1756638643285,-350.36287307,0.0001773,2]
[382468999,1756638643294,-480.0,0.0001773,2]
[382469001,1756638643303,-480.0,0.0001773,2]
[382469003,1756638643312,-480.0,0.0001773,2]
[382469005,1756638643321,-1551.5,0.0001773,2]
[382469008,1756638643331,-480.0,0.0001773,2]
[382469010,1756638643340,-480.0,0.0001773,2]
[382469012,1756638643350,-571.52321439,0.0001773,2]
[382469014,1756638643359,-480.0,0.0001773,2]
[382469016,1756638643368,-596.24306652,0.0001773,2]
[382469018,1756638643378,-153.83075818,0.0001773,2]
[382469020,1756638643387,-480.0,0.0001773,2]
[382469022,1756638643396,-480.0,0.0001773,2]
[382469023,1756638643405,-480.0,0.0001773,2]
[382469025,1756638643415,-480.0,0.0001773,2]
[382469027,1756638643424,-480.0,0.0001773,2]
[382469029,1756638643434,-480.0,0.0001773,2]
[382469031,1756638643443,-480.0,0.0001773,2]
[382469033,1756638643456,-480.0,0.0001773,2]
[382469035,1756638643466,-1550.77,0.0001773,2]
[382469037,1756638643476,-480.32440113,0.0001773,2]
[382469039,1756638643485,-480.0,0.0001773,2]
[382469041,1756638643496,-480.0,0.0001773,2]
[382469043,1756638643505,-480.0,0.0001773,2]
[382469045,1756638643514,-480.0,0.0001773,2]
[382469047,1756638643524,-480.0,0.0001773,2]
[382469049,1756638643534,-607.24,0.0001773,2]
[382469051,1756638643543,-480.0,0.0001773,2]
[382469053,1756638643553,-572.76,0.0001773,2]
[382469055,1756638643563,-480.0,0.0001773,2]
[382469057,1756638643572,-571.99,0.0001773,2]
[382469059,1756638643582,-836.71,0.0001773,2]
[382469061,1756638643591,-480.0,0.0001773,2]
[382469063,1756638643600,-480.0,0.0001773,2]
[382469065,1756638643610,-480.0,0.0001773,2]
[382469067,1756638643619,-480.0,0.0001773,2]
[382469069,1756638643629,-519.29,0.0001773,2]
[382469071,1756638643638,-481.29,0.0001773,2]
[382469073,1756638643649,-480.0,0.0001773,2]
[382469075,1756638643658,-881.51,0.0001773,2]
[382469077,1756638643668,-572.28,0.0001773,2]
[382469079,1756638643678,-480.0,0.0001773,2]
[382469081,1756638643688,-480.0,0.0001773,2]
[382469083,1756638643697,-480.0,0.0001773,2]
[382469085,1756638643708,-481.33495109,0.0001773,2]
[382469087,1756638643717,-480.0,0.0001773,2]
[382469089,1756638643727,-481.60340813,0.0001773,2]
[382469091,1756638643735,-480.0,0.0001773,2]
[382469093,1756638643744,-480.0,0.0001773,2]
[382469095,1756638643754,-581.67,0.0001773,2]
[382469097,1756638643763,-480.0,0.0001773,2]
[382469099,1756638643772,-675.39,0.0001773,2]
[382469101,1756638643782,-503.8,0.0001773,2]
[382469103,1756638643791,-481.51570582,0.0001773,2]
[382469121,1756638643801,-480.0,0.0001773,2]
[382469124,1756638643973,-1000.0,0.0001773,2]
[382469126,1756638643983,-481.19134569,0.0001773,2]
[382469127,1756638643993,-480.0,0.0001773,2]
[382469129,1756638644003,-480.0,0.0001773,2]
[382469131,1756638644012,-500.0,0.0001773,2]
[382469133,1756638644023,-480.0,0.0001773,2]
[382469135,1756638644032,-424.23151174,0.0001773,2]
[382469137,1756638644040,-480.0,0.0001773,2]
[382469139,1756638644049,-480.0,0.0001773,2]
[382469141,1756638644059,-480.0,0.0001773,2]
[382469143,1756638644068,-966.64,0.0001773,2]
[382469145,1756638644077,-480.0,0.0001773,2]
[382469147,1756638644087,-480.0,0.0001773,2]
[382469149,1756638644096,-480.0,0.0001773,2]
[382469151,1756638644105,-480.0,0.0001773,2]
[382469153,1756638644115,-867.44,0.0001773,2]
[382469155,1756638644124,-480.0,0.0001773,2]
[382469157,1756638644134,-480.0,0.0001773,2]
[382469158,1756638644143,-177.82874049,0.0001773,2]
[382469160,1756638644153,-480.41918539,0.0001773,2]
[382469162,1756638644162,-480.0,0.0001773,2]
[382469164,1756638644171,-481.37312937,0.0001773,2]
[382469166,1756638644180,-480.90901929,0.0001773,2]
[382469168,1756638644189,-500.0,0.0001773,2]
[382469170,1756638644198,-500.0,0.0001773,2]
[382469172,1756638644208,-500.0,0.0001773,2]
[382469174,1756638644217,-500.0,0.0001773,2]
[382469176,1756638644227,-500.0,0.0001773,2]
[382469178,1756638644236,-500.0,0.0001773,2]
[382469180,1756638644246,-500.0,0.0001773,2]
[382469182,1756638644255,-482.59720954,0.0001773,2]
[382469184,1756638644265,-480.77248224,0.0001773,2]
[382469186,1756638644274,-480.0,0.0001773,2]
[382469188,1756638644283,-480.73,0.0001773,2]
[382469190,1756638644293,-480.0,0.0001773,2]
[382469192,1756638644301,-659.58,0.0001773,2]
[382469194,1756638644312,-2129.48,0.00017731,2]
[382469196,1756638644323,-168.0,0.00017767,2]
[382469198,1756638644334,-1000.0,0.00017773,2]
[382469200,1756638644343,-151.0,0.000178,2]
[382469202,1756638644354,-151.0,0.000178,2]
[382469204,1756638644365,-3028.397421,0.000178,2]
[382469206,1756638644375,-151.0,0.00017816,2]
[382469208,1756638644385,-151.0,0.00017816,2]
[382469210,1756638644395,-154.702727,0.00017816,2]
[382469212,1756638644404,-151.0,0.00017816,2]
[382469214,1756638644414,-165.925572,0.00017816,2]
[382469216,1756638644423,-270.445229,0.00017816,2]
[382469218,1756638644433,-151.0,0.00017816,2]
[382469220,1756638644443,-151.0,0.00017816,2]
[382469221,1756638644453,-151.0,0.00017816,2]
[382469223,1756638644463,-151.0,0.00017816,2]
[382469225,1756638644471,-151.0,0.00017816,2]
[382469227,1756638644480,-279.423575,0.00017816,2]
[382469229,1756638644490,-151.0,0.00017816,2]
[382469231,1756638644499,-151.0,0.00017816,2]
[382469233,1756638644508,-151.0,0.00017816,2]
[382469235,1756638644518,-151.0,0.00017816,2]
[382469237,1756638644530,-151.0,0.00017816,2]
[382469239,1756638644540,-151.0,0.00017816,2]
[382469241,1756638644549,-151.0,0.00017816,2]
[382469243,1756638644559,-151.0,0.00017816,2]
[382469245,1756638644569,-151.0,0.00017816,2]
[382469247,1756638644579,-151.0,0.00017816,2]
[382469249,1756638644588,-652.143732,0.00017816,2]
[382469251,1756638644598,-151.0,0.00017816,2]
[382469253,1756638644607,-652.143732,0.00017816,2]
[382469255,1756638644616,-151.0,0.00017816,2]
[382469257,1756638644626,-652.143732,0.00017816,2]
[382469259,1756638644635,-652.143732,0.00017816,2]
[382469261,1756638644644,-21907.00539131,0.00017816,2]
[382469263,1756638644654,-175928.8950757,0.00017827,2]
[382469265,1756638644663,-3290.9828006,0.00017827,2]
[382469267,1756638644672,-151.0,0.00017827,2]
[382469269,1756638644683,-151.0,0.00017827,2]
[382469271,1756638644693,-151.0,0.00017827,2]
[382469273,1756638644703,-151.0,0.00017827,2]
[382469275,1756638644712,-151.0,0.00017827,2]
[382469277,1756638644722,-151.0,0.00017827,2]
[382469279,1756638644731,-151.0,0.00017827,2]
[382469281,1756638644740,-480.0,0.0001783,2]
[382469283,1756638644750,-480.0,0.0001783,2]
[382469285,1756638644760,-151.0,0.0001783,2]
[382469287,1756638644769,-151.0,0.0001783,2]
[382469289,1756638644779,-151.943352,0.0001783,2]
[382469291,1756638644789,-151.0,0.0001783,2]
[382469293,1756638644799,-151.0,0.0001783,2]
[382469295,1756638644808,-151.0,0.0001783,2]
[382469297,1756638644818,-151.0,0.0001783,2]
[382469299,1756638644828,-151.0,0.0001783,2]
[382469301,1756638644837,-151.0,0.0001783,2]
[382469303,1756638644847,-151.0,0.0001783,2]
[382469305,1756638644856,-151.0,0.0001783,2]
[382469307,1756638644866,-159.226158,0.0001783,2]
[382469309,1756638644875,-151.0,0.0001783,2]
[382469311,1756638644884,-287.782845,0.0001783,2]
[382469313,1756638644893,-151.0,0.0001783,2]
[382469315,1756638644903,-151.0,0.0001783,2]
[382469317,1756638644912,-151.0,0.0001783,2]
[382469319,1756638644921,-4682.5,0.0001783,2]
[382469321,1756638644931,-945.94,0.0001783,2]
[382469323,1756638644940,-151.0,0.0001783,2]
[382469325,1756638644952,-2273.44,0.0001783,2]
[382469327,1756638644962,-174.328887,0.0001783,2]
[382469329,1756638644971,-151.0,0.0001783,2]
[382469331,1756638644980,-151.0,0.0001783,2]
[382469333,1756638644990,-169.664587,0.0001783,2]
[382469335,1756638644999,-151.0,0.0001783,2]
[382469337,1756638645008,-151.0,0.0001783,2]
[382469338,1756638645017,-2385.19,0.0001783,2]
[382469339,1756638645027,-480.0,0.0001783,2]
[382469340,1756638645036,-984.47,0.0001783,2]
[382469341,1756638645046,-481.182224,0.0001783,2]
[382469342,1756638645056,-4607.93,0.0001783,2]
[382469343,1756638645067,-6863.46,0.0001783,2]
[382469344,1756638645077,-882.2,0.0001783,2]
[382469345,1756638645087,-151.0,0.0001783,2]
[382469346,1756638645096,-1473.14,0.0001783,2]
[382469347,1756638645106,-2155.02,0.0001783,2]
[382469348,1756638645116,-151.0,0.0001783,2]
[382469349,1756638645126,-151.0,0.0001783,2]
[382469350,1756638645136,-480.0,0.0001783,2]
[382469351,1756638645146,-2642.58,0.0001783,2]
[382469352,1756638645155,-1092.28,0.0001783,2]
[382469353,1756638645165,-151.343345,0.0001783,2]
[382469354,1756638645174,-151.0,0.0001783,2]
[382469355,1756638645184,-151.0,0.0001783,2]
[382469356,1756638645193,-151.0,0.0001783,2]
[382469357,1756638645203,-151.0,0.0001783,2]
[382469358,1756638645213,-151.158634,0.0001783,2]
[382469359,1756638645223,-151.0,0.0001783,2]
[382469360,1756638645233,-151.0,0.0001783,2]
[382469361,1756638645242,-151.0,0.0001783,2]
[382469363,1756638645252,-266.07364189,0.0001783,2]
[382469365,1756638645261,-184.038744,0.0001783,2]
[382469366,1756638645270,-151.0,0.0001783,2]
[382469368,1756638645280,-151.0,0.0001783,2]
[382469370,1756638645290,-160.424535,0.0001783,2]
[382469373,1756638645300,-151.0,0.0001783,2]
[382469375,1756638645311,-652.143732,0.0001783,2]
[382469377,1756638645321,-178.660336,0.0001783,2]
[382469379,1756638645330,-652.143732,0.0001783,2]
[382469380,1756638645340,-151.0,0.0001783,2]
[382469382,1756638645350,-652.143732,0.0001783,2]
[382469384,1756638645359,-168.0,0.0001783,2]
[382469387,1756638645371,-2129.48393468,0.00017831,2]
[382469389,1756638645380,-456.81308376,0.00017831,2]
[382469391,1756638645389,-480.0,0.00017831,2]
[382469393,1756638645398,-480.0,0.00017831,2]
[382469395,1756638645408,-485.6502,0.00017831,2]
[382469397,1756638645417,-480.0,0.00017831,2]
[382469399,1756638645427,-480.0,0.00017831,2]
[382469401,1756638645436,-480.0,0.00017831,2]
[382469403,1756638645445,-480.0,0.00017831,2]
[382469405,1756638645455,-1260.41,0.00017831,2]
[382469407,1756638645465,-480.0,0.00017831,2]
[382469409,1756638645474,-480.0,0.00017831,2]
[382469411,1756638645483,-480.0,0.00017831,2]
[382469412,1756638645492,-480.0,0.00017831,2]
[382469414,1756638645502,-480.0,0.00017831,2]
[382469417,1756638645512,-480.0,0.00017831,2]
[382469419,1756638645521,-480.0,0.00017831,2]
[382469421,1756638645530,-480.0,0.00017831,2]
[382469423,1756638645540,-564.21,0.00017831,2]
[382469425,1756638645549,-480.0,0.00017831,2]
[382469426,1756638645560,-480.0,0.00017831,2]
[382469428,1756638645569,-1079.7,0.00017831,2]
[382469430,1756638645578,-480.0,0.00017831,2]
[382469432,1756638645587,-480.0,0.00017831,2]
[382469434,1756638645597,-561.96,0.00017831,2]
[382469436,1756638645606,-481.08117347,0.00017831,2]
[382469438,1756638645616,-480.81705646,0.00017831,2]
[382469440,1756638645625,-480.0,0.00017831,2]
[382469442,1756638645635,-480.0,0.00017831,2]
[382469444,1756638645644,-484.64387556,0.00017831,2]
[382469446,1756638645653,-480.0,0.00017831,2]
[382469448,1756638645662,-582.99,0.00017831,2]